Cogmind - Beta 10.2 @@@ ROGUE MODE // 2021.02.13 @ 19:55:09 Player: Chloroform Result: Destroyed by S-10 Pest with Light Assault Rifle Performance ------------- Evolutions (2) 1000 Regions Visited (4) 800 Robots Destroyed (21) 105 Value Destroyed (676) 676 Prototype IDs (1) 20 Alien Tech Used (0) 0 Bonus (0) 0 TOTAL SCORE: 2601 Bonus ------- None Cogmind --------- Core Integrity 0/550 Matter 240/300 Energy 100/100 System Corruption 0% Temperature Cool (0) Movement Core (50) Location -8/Materials Parts ------- > --- POWER (2) -------- (None) > --- PROPULSION (4) --- (None) > --- UTILITY (3) ------ (None) > --- WEAPON (2) ------- (None) > --- INVENTORY (4) ---- Light Ion Engine Small Laser Ion Cannon Peak State ------------ > --- POWER ------------ Ion Engine > --- PROPULSION ------- Light Treads Light Treads Light Treads > --- UTILITY ---------- Large Storage Unit Large Storage Unit Core Shielding > --- WEAPON ----------- Rocket Launcher Rocket Launcher > --- INVENTORY -------- Ion Engine Light Ion Engine Light Ion Engine Light Treads Aluminum Leg VTOL Module Improved Flight Unit Improved Flight Unit Small Storage Unit Medium Storage Unit High-capacity Matter Pod Armor Integrity Analyzer Core Shielding [Rating: 12] Favorites ----------- Power Ion Engine Engine Ion Engine Power Core Light Nuclear Core Propulsion Aluminum Leg Treads Light Treads Leg Aluminum Leg Flight Unit Improved Flight Unit Utility Large Storage Unit Storage Large Storage Unit Protection Core Shielding Weapon Light Assault Rifle Energy Gun Small Laser Ballistic Gun Light Assault Rifle Launcher Rocket Launcher Build | -11 -10 -9 -9 -8 ------- Run | Scr Mat Mat Min Mat Slots Evolved 4 | . . 2 . 2 Power 1 | . . . . 1 Propulsion 2 | . . 1 . 1 Utility 1 | . . 1 . . Weapon . | . . . . . Parts Attached 40 | 6 7 17 5 5 Power 6 | 1 1 2 . 2 Engine 5 | 1 1 2 . 1 Core 1 | . . . . 1 Reactor . | . . . . . Propulsion 14 | 2 3 5 1 3 Treads 4 | . . 3 1 . Leg 7 | 2 3 2 . . Wheel . | . . . . . Hover . | . . . . . Flight 3 | . . . . 3 Utility 10 | 1 1 8 . . Device . | . . . . . Storage 4 | 1 . 3 . . Processor . | . . . . . Hackware . | . . . . . Protection 6 | . 1 5 . . Artifact . | . . . . . Weapon 10 | 2 2 2 4 . Energy Gun 3 | . . 1 2 . Energy Cannon . | . . . . . Ballistic Gun 4 | 2 1 1 . . Ballistic Cannon . | . . . . . Launcher 3 | . 1 . 2 . Special Weapon . | . . . . . Impact Weapon . | . . . . . Slashing Weapon . | . . . . . Piercing Weapon . | . . . . . Special Melee Weapon . | . . . . . Unidentified Prototypes 1 | . . . . 1 Parts Lost 16 | . 1 9 2 4 Power 3 | . . 1 . 2 Propulsion 5 | . . 3 . 2 Utility 1 | . . 1 . . Weapon 7 | . 1 4 2 . Highest Loss Streak 5 | . 1 5 2 4 Average Slot Usage (%) 90 | . 96 90 95 26 Engine 11 | . 14 11 11 3 Treads 12 | . . 1 33 3 Leg 16 | . 28 31 . . Storage 16 | . 14 16 22 2 Protection 10 | . 10 9 11 1 Energy Gun 4 | . . 6 7 2 Ballistic Gun 11 | . 27 12 . . Launcher 4 | . . 1 10 . Naked Turns 15 | . . . . 15 Heaviest Build 49 | 10 17 49 46 40 Greatest Support 60 | 20 20 60 60 60 Greatest Overweight (x) 2 | 2 . 1 . 1 Average Overweight (x) . | . . . . . Largest Inventory Capacity 20 | 6 6 20 16 16 Average Capacity 10 | 5 6 10 16 5 Most Carried 15 | 6 6 14 15 14 Average Carried 8 | 3 5 8 12 4 Final Capacity 16 | 6 6 16 16 4 Final Carried 14 | 6 6 10 14 3 Class Distribution -------------------- 56% | Scavenger-Mutant 43% | Mutant Dominant Class ---------------- Mutant | -10/Materials Scavenger-Mutant | -9/Materials Scavenger-Mutant | -9/Mines Mutant | -8/Materials Resources | -11 -10 -9 -9 -8 ----------- Run | Scr Mat Mat Min Mat Matter Collected 836 | 251 213 149 223 . Remotely . | . . . . . Salvage Created 653 | . 336 239 78 . Parts 43 | . 23 16 4 . Haulers Intercepted . | . . . . . Recyclers Shooed 2 | . 2 . . . Parts Field Recycled . | . . . . . Retrieved Matter . | . . . . . Parts Self-Destructed . | . . . . . Prevented . | . . . . . Kills | -11 -10 -9 -9 -8 ------- Run | Scr Mat Mat Min Mat Combat Hostiles Destroyed 21 | . 11 7 3 . Melee 1 | . . 1 . . Guns 13 | . 9 4 . . AOE 7 | . 2 2 3 . Classes Destroyed 4 | . 2 1 1 . Swarmer 5 | . 3 2 . . Grunt 11 | . 8 1 2 . Brawler 1 | . . . 1 . Sentry 4 | . . 4 . . Best Kill Streak 3 | . 3 3 3 . Combat Bots Only 3 | . 3 3 3 . Max Kills in Single Turn 2 | . 2 1 2 . Gunslinging 1 | . 1 . . . Exploded 2 | . 2 1 2 . Melee 1 | . . 1 . . Uniques/NPCs Destroyed . | . . . . . Combat | -11 -10 -9 -9 -8 -------- Run | Scr Mat Mat Min Mat Damage Taken 2427 | . 569 852 290 716 Core 781 | . 90 113 24 554 Absorbed by Shields . | . . . . . Core Remaining (%) 76 | 100 64 . 65 . Volleys Fired 71 | . 32 34 5 . Largest 2 | . 2 2 2 . Hottest 66 | . 50 60 66 . Shots Fired 125 | . 60 55 10 . Gun 107 | . 57 50 . . Cannon . | . . . . . Launcher 18 | . 3 5 10 . Special . | . . . . . Kinetic 90 | . 57 33 . . Thermal 17 | . . 17 . . Explosive 18 | . 3 5 10 . Electromagnetic . | . . . . . Robot Hit Streak 11 | . 11 11 5 . Robot Miss Streak 5 | . 4 5 2 . Penetration Max . | . . . . . Secondary Targets 3 | . 3 . . . Max Gunslinging Chain 1 | . 1 . . . Shots Hit Robots 89 | . 43 39 7 . Core Hits 37 | . 19 13 5 . Critical Hits 1 | . 1 . . . Critical Kills 1 | . 1 . . . Critical Parts Destroyed . | . . . . . Melee Attacks . | . . . . . Impact . | . . . . . Slashing . | . . . . . Piercing . | . . . . . Sneak Attacks . | . . . . . Combat Hostiles . | . . . . . Follow-up Attacks . | . . . . . Damage Inflicted 1398 | . 581 483 334 . Guns 805 | . 437 368 . . Cannons . | . . . . . Explosions 587 | . 144 109 334 . Melee . | . . . . . Ramming 6 | . . 6 . . Kinetic 648 | . 437 211 . . Thermal 157 | . . 157 . . Explosive 587 | . 144 109 334 . Electromagnetic . | . . . . . Impact . | . . . . . Slashing . | . . . . . Piercing . | . . . . . Highest Corruption . | . . . . . Average Corruption . | . . . . . Corruption Purged . | . . . . . Overload Shots . | . . . . . Overflow Damage 28 | . . . 28 . Projectiles . | . . . . . Explosions 28 | . . . 28 . Melee . | . . . . . Knockbacks . | . . . . . Impact . | . . . . . Kinetic . | . . . . . Secondary . | . . . . . Self-Inflicted Damage 332 | . 17 53 262 . Shots 11 | . 2 2 7 . Rammed 1 | . . 1 . . Targets Rammed 2 | . . 2 . . Kicked . | . . . . . Crushed 1 | . . 1 . . Highest Temperature 44 | . 44 31 . . Average Temperature 14 | . 14 13 . . Received Heat Transfer 591 | . 204 216 . 171 Siege Activations . | . . . . . Robots Corrupted . | . . . . . Combat Hostiles . | . . . . . Parts Fried . | . . . . . Impact Corruptions . | . . . . . Robots Melted . | . . . . . Combat Hostiles . | . . . . . Parts Melted . | . . . . . Heat Transferred 350 | . . 350 . . Parts Sabotaged . | . . . . . Parts Stolen . | . . . . . Parts Stripped . | . . . . . Power Chain Reactions . | . . . . . Missiles Intercepted . | . . . . . Alert | -11 -10 -9 -9 -8 ------- Run | Scr Mat Mat Min Mat Peak Influence 192 | . 152 192 146 15 Initial 66 | . . 37 66 . Average 65 | . 44 135 57 2 Maximum Alert Level . | . . . . . Low Security (%) 100 | 100 100 100 100 100 Level 1 . | . . . . . Level 2 . | . . . . . Level 3 . | . . . . . Level 4 . | . . . . . Level 5 . | . . . . . High Security . | . . . . . Max Security . | . . . . . Squads Dispatched 2 | . 1 . . 1 Investigation 1 | . 1 . . . Extermination . | . . . . . Reinforcement 1 | . . . . 1 Assault . | . . . . . Garrison . | . . . . . Intercept . | . . . . . Construction Impeded . | . . . . . Haulers Reinforced . | . . . . . Stealth | -11 -10 -9 -9 -8 --------- Run | Scr Mat Mat Min Mat Distress Signals . | . . . . . Communications Jammed . | . . . . . Distress Signals . | . . . . . Times Spotted 36 | . 11 14 3 8 Peak Tracking Total 7 | . 3 6 3 7 Tactical Retreats . | . . . . . Traps | -11 -10 -9 -9 -8 ------- Run | Scr Mat Mat Min Mat Traps Triggered 1 | . 1 . . . Indirectly . | . . . . . Trap Hack Attempts . | . . . . . Triggered . | . . . . . Disarmed . | . . . . . Reprogrammed . | . . . . . Reused . | . . . . . Traps Extracted . | . . . . . Installed . | . . . . . Triggered . | . . . . . Machines | -11 -10 -9 -9 -8 ---------- Run | Scr Mat Mat Min Mat Machines Disabled 1 | . . . 1 . Max in Single Turn 1 | . . . 1 . Machines Sabotaged . | . . . . . Garrisons Compromised . | . . . . . Overloaded Fab Kills . | . . . . . Fab Network Shutdowns . | . . . . . Hacking | -11 -10 -9 -9 -8 --------- Run | Scr Mat Mat Min Mat Machines Accessed 2 | . 2 . . . Terminals 2 | . 2 . . . Fabricators . | . . . . . Repair Stations . | . . . . . Recycling Units . | . . . . . Scanalyzers . | . . . . . Garrison Access . | . . . . . Total Hacks 5 | . 5 . . . Successful 2 | . 2 . . . Failed 3 | . 3 . . . Catastrophic . | . . . . . Database Lockouts . | . . . . . Manual 3 | . 3 . . . Terminals 5 | . 5 . . . Fabricators . | . . . . . Repair Stations . | . . . . . Recycling Units . | . . . . . Scanalyzers . | . . . . . Garrison Access . | . . . . . Terminal Hacks 2 | . 2 . . . Part Schematic 1 | . 1 . . . Zone Layout 1 | . 1 . . . Fabricator Hacks . | . . . . . Repair Station Hacks . | . . . . . Recycling Unit Hacks . | . . . . . Scanalyzer . | . . . . . Garrison Access Hacks . | . . . . . Unauthorized Hacks . | . . . . . Terminals . | . . . . . Fabricators . | . . . . . Repair Stations . | . . . . . Recycling Units . | . . . . . Scanalyzers . | . . . . . Garrison Access . | . . . . . Data Cores Recovered . | . . . . . Used . | . . . . . Hacking Detections 2 | . 2 . . . Full Trace Events . | . . . . . Feedback Events . | . . . . . Feedback Blocked . | . . . . . Robot Schematics Acquired . | . . . . . Robots Built . | . . . . . Matter . | . . . . . Time . | . . . . . Total Robot Build Rating . | . . . . . Part Schematics Acquired 1 | . 1 . . . Parts Built . | . . . . . Matter . | . . . . . Time . | . . . . . Total Part Build Rating . | . . . . . Parts Repaired . | . . . . . Time . | . . . . . Parts Recycled . | . . . . . Recycled Matter . | . . . . . Retrieved Matter . | . . . . . Retrieved Components . | . . . . . Parts Scanalyzed . | . . . . . Part Schematics Acquired . | . . . . . Parts Damaged . | . . . . . Bothacking | -11 -10 -9 -9 -8 ------------ Run | Scr Mat Mat Min Mat Used RIF Installer . | . . . . . Robots Hacked . | . . . . . Non-combat . | . . . . . Combat . | . . . . . Robot Hacks Applied . | . . . . . Relay Couplers Released . | . . . . . Robots Rewired . | . . . . . Allies Hacked . | . . . . . Hacks Repelled . | . . . . . Allies | -11 -10 -9 -9 -8 -------- Run | Scr Mat Mat Min Mat Total Allies . | . . . . . Largest Group . | . . . . . Highest-Rated Group . | . . . . . Highest-Rated Ally . | . . . . . Total Orders . | . . . . . Ally Attacks . | . . . . . Total Damage . | . . . . . Kills . | . . . . . Allies Corrupted . | . . . . . Allies Melted . | . . . . . Intel | -11 -10 -9 -9 -8 ------- Run | Scr Mat Mat Min Mat Robot Analysis Total . | . . . . . Derelict Logs Recovered 1 | . . . 1 . Drone Launches . | . . . . . Drone Recoveries . | . . . . . Exploration | -11 -10 -9 -9 -8 ------------- Run | Scr Mat Mat Min Mat Turns Passed 1574 | 98 457 379 550 90 Spaces Moved 938 | 71 273 177 328 89 Core 30 | 18 . . . 12 Treads 343 | . . 7 328 8 Legs 496 | 53 273 170 . . Wheels . | . . . . . Hover . | . . . . . Flight 69 | . . . . 69 Fastest Speed 34 | 50 120 120 160 34 Average Speed 129 | 117 120 130 160 52 Slowest Speed 160 | 150 120 160 160 160 Overloaded Moves . | . . . . . Propulsion Burnouts . | . . . . . Robots Hopped . | . . . . . Cave-ins Triggered . | . . . . . Exploration Rate (%) 22 | 4 34 19 47 10 Regions Visited 4 Branch Regions 1 Pre-discovered Areas 1 | . . . 1 . Known Exits Taken . | . . . . . Unknown Exits Taken 4 | 1 1 1 1 . Scrap Searched 1 | . . . 1 . Spaces Dug . | . . . . . Terrain Destroyed 111 | . 28 35 48 . Melee . | . . . . . Projectile . | . . . . . AOE 111 | . 28 35 48 . Terrain Rammed . | . . . . . Walls Destroyed . | . . . . . Machines Disabled . | . . . . . Actions | -11 -10 -9 -9 -8 --------- Run | Scr Mat Mat Min Mat Total 1178 | 82 348 273 342 133 Wait 75 | . 21 24 . 30 Move 934 | 70 272 176 327 89 Hop . | . . . . . Pick Up 35 | 6 8 13 4 4 Fast Attach 20 | 6 2 5 4 3 Attach 11 | . . 8 1 2 Detach 3 | . . 1 1 1 Swap 9 | . 5 4 . . Drop 18 | . 8 6 . 4 Fire 71 | . 32 34 5 . Melee . | . . . . . Ram . | . . . . . Kick . | . . . . . Crush 2 | . . 2 . . Escape Stasis . | . . . . . Rewire . | . . . . . Trap . | . . . . . Miscellaneous . | . . . . . Route ------- -11/Scrapyard -10/Materials (discovered 2 exits: [*Mat] / [*Min]) -9/Materials -9/Mines -8/Materials History --------- Turn | Location | Event 19 | -11/Scrapyard | Discovered new exit (range 16) 99 | -11/Scrapyard | Entered Materials 271 | -10/Materials | Discovered new exit (range 16) 312 | -10/Materials | Build established: Mutant 487 | -10/Materials | Discovered new exit (range 13) 556 | -10/Materials | Entered another Materials area 556 | -9/Materials | Evolved 2 slots: Propulsion x1, Utility x1 732 | -9/Materials | Discovered new exit (range 16) 912 | -9/Materials | Build established: Scavenger-Mutant 935 | -9/Materials | Entered Mines 948 | -9/Mines | Lost 5 parts (1p2n2w) 1034 | -9/Mines | Discovered new exit (range 11) 1041 | -9/Mines | Received a Rocket Launcher from a helpful Derelict 1376 | -9/Mines | Learned location of Storage (-9) 1485 | -9/Mines | Entered Materials 1485 | -8/Materials | Evolved 2 slots: Power x1, Propulsion x1 1498 | -8/Materials | Released all parts (9) 1564 | -8/Materials | Core integrity fell below 50% 1570 | -8/Materials | Core integrity fell below 20% 1575 | -8/Materials | Destroyed by S-10 Pest with Light Assault Rifle Last Messages --------------- 01519_ Dropped Aluminum Leg. 01520_ Dropped Heat Sink. 01520_ Dropped Med. Storage Unit. 01521_ Dropped Faulty Imp. Flight Unit. 01522_ Acquired Lgt. Ion Engine. 01526_ Acquired Sml. Laser. 01529_ Acquired Ion Cannon. 01541_ ALERT: Hostiles spotted, dispatching reinforcements to Terminal M012. 01544_ Lgt. Ion Engine destroyed. 01547_ Lgt. Nuclear Core destroyed. 01548_ S-10 Pest destroyed. 01550_ VTOL Module destroyed. 01551_ Penetrated by Slug. 01553_ S-10 Pest destroyed. 01554_ Penetrated by Slug. 01557_ Slug penetrates Wall. 01560_ Penetrated by Slug. 01562_ Imp. Flight Unit destroyed. 01563_ Penetrated by Slug. Map ----- +----------------------------------------------------+ | ???????????????????????????########???? | | ???????????????????????????# = #???? | | ???????????????????????????#!! #???? | | ???????????????????????????#!!!!=!#???? | | ???????????????????????????#**! =#???? | | ???????????????????????????#!=!![ #???? | | ???????????????????????????# =!=! #???? | | ????? ##############+######+#####???? | | ????? #????? | | ???? #????? | | ???? #????? | | ???? #########+####????? | | ???????""" #?????? ??????? | | ???????""" #????# #?????? | | ????? """ """ #????# "" #?????? | | ????? G" #????# ! Y" #?????? | | ???? """ #????# "" #?????? | | ???? #????# #?????? | | ???? ! #????########?????? | | ??????"Y"#" "## hg ###+#############?? | | ?????????#"R??# g% = + #?? | | ??????????????# s= # #?? | | ??????????????# # ! #?? | | ??????????????# # #?? | | ??????????????# ; #?? | | ??????????????# @# #?? | | ??????????????########+#;## #?? | | ????????????????# # #?? | | ????????????????# ! ###########?? | | ????????????????# #???????????? | | ????????????????# #???????????? | | ????????????????# """ """ #???????????? | | ????????????????# """ """ #???????????? | | ????????????????# """ """ #???????????? | | ????????????????# #???????????? | | ??????????????????#########???????????? | | ??????????????????????????????????????? | | ??????????????????????????????????????? | | ??????????????????????????????????????? | | ??????????????????????????????????????? | | ??????????????????????????????????????? | | ??????????????????????????????????????? | | ??????????????????????????????????????? | | ??????????????????????????????????????? | | ??????????????????????????????????????? | | ??????????????????????????????????????? | | ??????????????????????????????????????? | | ??????????????????????????????????????? | | ??????????????????????????????????????? | | ??????????????????????????????????????? | +----------------------------------------------------+ Best States ------------- Heat Dissipation 31 Energy Generation 19 Energy Capacity 265 Matter Stores 300 Matter Capacity 300 Sight Range 16 Terrain Scan Density 10 Armor Coverage 150 Core Shielding 20 Evasion (%) 63 Recoil Reduction 3 Item Schematics ----------------- Lrg. Storage Unit | -10/Materials | Hacked Robot Schematics ------------------ None Fabricated ------------ Nothing Alien Tech Used ----------------- None Achievements -------------- None Challenges ------------ None Game ------ Seed MobileArmoredDesublimator Manual? 0 Play Time 00:23:46 Cumulative 5.7 hours Start 2021.02.13 @ 19:26:47 End 2021.02.13 @ 19:55:09 Sessions 1 Manual Loads 0 Difficulty Rogue Special Mode None Game No. 9 Rogue 9 Adventurer 0 Explorer 0 Win Type - Total 0 Types 0/0/0/0/0/0/0/0/0 Lore% 4 Gallery% 15 Achievement% 14 Wizard Run 0 Options --------- ASCII 0 Keyboard 1 Movement Arrows Keybinds 0 Fullscreen 2 Font 18/SmallcapsGlow Map View 76x50 Tactical HUD 1 Map Filters NONE Filters NONE Steam 0 RUN: 9872f9ed-1660-431d-a253-a87f267a151f